fUST/lending_fUST_20260216
["ID","MTS","AMOUNT","RATE_DAILY","PERIOD"]
[405570385,1771203041447,-619.71453211,0.00017799,2]
[405570386,1771203041456,-83003.03770264,0.000178,2]
[405570428,1771203046679,-1041.66666667,0.000178,2]
[405570440,1771203063810,500.0,0.00013699,2]
[405570441,1771203063851,1000.0,0.00014247,2]
[405570442,1771203063891,1015.13337887,0.00014795,2]
[405570445,1771203065825,500.0,0.00013273,2]
[405570446,1771203065876,1000.0,0.00013821,2]
[405570447,1771203065918,702.83775976,0.00014247,2]
[405570448,1771203065949,946.75001853,0.00014368,2]
[405570449,1771203065981,404.50815283,0.00013273,2]
[405570450,1771203066013,500.0,0.00013699,2]
[405570451,1771203067688,500.0,0.00013699,2]
[405570452,1771203067738,616.19990478,0.00014795,2]
[405570453,1771203067791,1000.0,0.00014247,2]
[405570454,1771203071973,500.0,0.00013699,2]
[405570455,1771203072007,1000.0,0.00014247,2]
[405570456,1771203072060,214.61377282,0.00014795,2]
[405570457,1771203080405,501.06156266,0.00013273,2]
[405570482,1771203183400,161.12039228,0.00013699,2]
[405570483,1771203183794,500.0,0.00013273,2]
[405570484,1771203183830,193.03448144,0.00013821,2]
[405570485,1771203183976,500.0,0.00013699,2]
[405570486,1771203190832,697.90396094,0.00014247,2]
[405570487,1771203250831,5000.0,0.000156,2]
[405570488,1771203258844,2048.39946411,0.000156,2]
[405570492,1771203306943,500.0,0.00013699,2]
[405570493,1771203306977,1027.96138248,0.00014247,2]
[405570496,1771203367639,500.0,0.00013699,2]
[405570497,1771203367689,1000.0,0.00014247,2]
[405570498,1771203367748,1500.0,0.00014795,2]
[405570499,1771203367802,2000.0,0.00015342,2]
[405570500,1771203369541,500.0,0.00013273,2]
[405570502,1771203423308,500.0,0.00013273,2]
[405570503,1771203423363,879.88429686,0.00013821,2]
[405570508,1771203603707,500.0,0.00013699,2]
[405570509,1771203608687,500.0,0.00013699,2]
[405570510,1771203608721,1000.0,0.00014247,2]
[405570511,1771203608770,1500.0,0.00014795,2]
[405570512,1771203608824,239.70521578,0.00015342,2]
[405570530,1771203663948,500.0,0.00013699,2]
[405570531,1771203663986,568.16448388,0.00014247,2]
[405570533,1771203665872,500.0,0.00013273,2]
[405570534,1771203668444,500.0,0.00013699,2]
[405570535,1771203668492,556.85575586,0.00014247,2]
[405570536,1771203704865,-232.71269144,0.00015806,2]
[405570546,1771203784360,500.0,0.00013699,2]
[405570547,1771203784393,919.15523469,0.00014247,2]
[405570561,1771203968518,500.0,0.00013699,2]
[405570562,1771203968565,500.0,0.00014247,2]
[405570564,1771203984283,500.0,0.00013273,2]
[405570565,1771203984341,1000.0,0.00013821,2]
[405570566,1771203984397,538.51283886,0.00014368,2]
[405570569,1771204024453,500.0,0.00013699,2]
[405570570,1771204024490,500.32522198,0.00014247,2]
[405570571,1771204026489,514.12636587,0.00013699,2]
[405570572,1771204042097,-228.05843761,0.00016303,2]
[405570573,1771204042118,-177.41940322,0.00016442,2]
[405570578,1771204052082,-651.90342726,0.00016542,2]
[405570588,1771204175849,696.8608353,0.00014,2]
[405570589,1771204175876,139324.02398849,0.00014,2]
[405570590,1771204182958,6781.95252608,0.00014,2]
[405570837,1771204240065,-580.07479659,0.00016442,2]
[405571243,1771204263059,500.0,0.00013699,2]
[405571244,1771204263111,792.88827359,0.00014247,2]
[405571245,1771204263144,500.0,0.00013699,2]
[405571246,1771204263175,1000.0,0.00014247,2]
[405571247,1771204263227,435.1705014,0.00014795,2]
[405571262,1771204474319,5000.0,0.000156,2]
[405571263,1771204495967,5000.0,0.000156,2]
[405571264,1771204504343,500.0,0.00013699,2]
[405571265,1771204504394,364.58830537,0.00014247,2]
[405571270,1771204517876,5000.0,0.000156,2]
[405571277,1771204539378,5000.0,0.000156,2]
[405571278,1771204554202,331.89360994,0.000156,2]
[405571279,1771204562203,5000.0,0.000156,2]
[405571410,1771204647687,5000.0,0.000156,2]
[405571411,1771204655754,5000.0,0.000156,2]
[405571415,1771204679021,496.59451752,0.000156,2]
[405571416,1771204743939,200.0,0.00013699,2]
[405571417,1771204751534,302.80573112,0.00013673,2]
[405571421,1771204813572,389.3901587,0.00013273,2]
[405571422,1771204819252,500.0,0.00013273,2]
[405571423,1771204819302,638.83428062,0.00013821,2]
[405571425,1771204863755,5000.0,0.000156,2]
[405571426,1771204866423,500.0,0.00013699,2]
[405571427,1771204866656,500.0,0.00013273,2]
[405571428,1771204866702,1000.0,0.00013821,2]
[405571429,1771204866756,427.92415494,0.00014368,2]
[405571430,1771204868391,500.0,0.00013273,2]
[405571431,1771204868444,1000.0,0.00013821,2]
[405571432,1771204868495,1500.0,0.00014368,2]
[405571433,1771204868548,210.10304494,0.00014916,2]
[405571434,1771204868909,502.44560844,0.00013273,2]
[405571435,1771204870293,500.0,0.00013699,2]
[405571436,1771204871886,500.0,0.00013699,2]
[405571437,1771204871942,506.56547141,0.00014247,2]
[405571438,1771204876098,500.0,0.00013699,2]
[405571439,1771204878725,500.0,0.00013699,2]
[405571443,1771204927384,500.0,0.00013699,2]
[405571444,1771204927579,327.5316758,0.00013273,2]
[405571445,1771204927800,1000.0,0.00013821,2]
[405571446,1771204927859,500.0,0.00013273,2]
[405571447,1771204927908,407.82856512,0.00014368,2]
[405571448,1771204928993,502.26914519,0.00013699,2]
[405571449,1771204929338,500.0,0.00013699,2]
[405571450,1771204930707,500.0,0.00013699,2]
[405571457,1771205046111,500.0,0.00013699,2]
[405571458,1771205046272,484.76117114,0.00014247,2]
[405571461,1771205116991,500.0,0.00013699,2]
[405571462,1771205117036,1000.0,0.00014247,2]
[405571463,1771205117088,1000.0,0.00014795,2]
[405571464,1771205117277,1000.0,0.00013821,2]
[405571465,1771205117327,1500.0,0.00014368,2]
[405571466,1771205117377,1119.02743993,0.00014916,2]
[405571467,1771205117435,500.0,0.00013273,2]
[405571468,1771205118456,501.9088931,0.00013699,2]
[405571469,1771205119273,501.17154116,0.00013699,2]
[405571470,1771205121208,502.28732278,0.00013273,2]
[405571471,1771205121253,501.63013071,0.00013699,2]
[405571472,1771205123338,500.40621732,0.00013273,2]
[405571473,1771205126195,500.0,0.00013699,2]
[405571474,1771205126247,273.50012722,0.00014247,2]
[405571475,1771205130116,500.98262723,0.00013273,2]
[405571484,1771205168381,500.0,0.00013273,2]
[405571485,1771205168447,1079.86275782,0.00013821,2]
[405571486,1771205187034,500.0,0.00013273,2]
[405571487,1771205187078,857.18421925,0.00013821,2]
[405571488,1771205189309,479.93579163,0.00013699,2]
[405571489,1771205199363,693.17156231,0.000156,2]
[405571493,1771205227799,500.0,0.00013699,2]
[405571494,1771205228017,500.20077682,0.00013699,2]
[405571495,1771205228145,500.50079033,0.00013273,2]
[405571496,1771205233229,485.91457631,0.00013699,2]
[405571497,1771205242127,-1172.56044389,0.00015756,2]
[405571499,1771205271059,5000.0,0.000156,2]
[405571505,1771205293650,5000.0,0.000156,2]
[405571512,1771205315623,5000.0,0.000156,2]
[405571517,1771205338357,5000.0,0.000156,2]
[405571522,1771205360358,5000.0,0.000156,2]
[405571525,1771205382905,5000.0,0.000156,2]
[405571527,1771205404677,1802.63987874,0.000156,2]
[405571529,1771205417099,501.03515756,0.00013699,2]
[405571530,1771205425994,828.399,0.000156,2]
[405571553,1771205431815,-248.72272346,0.00015865,2]
[405571554,1771205431825,-650.0,0.00015865,2]
[405571556,1771205431834,-74.27727654,0.00016235,2]
[405571558,1771205431852,-392.77148562,0.00016235,2]
[405571560,1771205431862,-406.15532812,0.00016335,2]
[405571561,1771205431871,-250.83379098,0.00016335,2]
[405571562,1771205431881,-226.36217939,0.00016335,2]
[405571563,1771205431889,-526.961857,0.00016436,2]
[405571564,1771205431899,-200.0,0.00016438,5]
[405571565,1771205431910,-348.09657274,0.00016542,2]
[405571566,1771205431919,-223.03386786,0.00016623,2]
[405571567,1771205431928,-168.0,0.00016633,2]
[405571568,1771205431938,-223.05136274,0.000168,2]
[405571574,1771205438003,-62.94863726,0.000168,2]
[405571576,1771205438013,-224.0213686,0.00016806,2]
[405571578,1771205438023,-442.19552095,0.00017246,2]
[405571593,1771205438157,-757.80447905,0.00017246,2]
[405571596,1771205438168,-300.0,0.00017247,2]
[405571598,1771205438178,-300.0,0.00017247,2]
[405571600,1771205438188,-300.0,0.00017247,2]
[405571602,1771205438197,-8583.24494969,0.00017248,2]
[405571604,1771205438207,-365.15,0.00017349,2]
[405571606,1771205438216,-431.55,0.00017349,2]
[405571608,1771205438225,-723.0,0.00017349,2]
[405571610,1771205438235,-186.383,0.00017349,2]
[405571611,1771205438244,-168.0,0.0001744,2]
[405571613,1771205438253,-4044.5718655,0.0001748,2]
[405571616,1771205438263,-161.971165,0.0001748,2]
[405571618,1771205438274,-3645.2247009,0.00017492,2]
[405571620,1771205438284,-2949.8763144,0.00017492,2]
[405571622,1771205438293,-163.0,0.000175,2]
[405571624,1771205438303,-499.43389589,0.0001763,2]
[405571626,1771205438311,-500.0,0.00017699,2]
[405571628,1771205438321,-3000.0,0.000177,2]
[405571630,1771205438331,-168.0,0.00017701,2]
[405571632,1771205438340,-168.0,0.00017779,2]
[405571633,1771205438349,-20718.5642803,0.000178,2]
[405572192,1771205444343,-1002.7,0.000178,2]
[405572217,1771205489595,279.89282709,0.00013699,2]
[405572222,1771205500974,-246.27008896,0.00017531,2]
[405572223,1771205509414,442.624,0.00017188,2]
[405572244,1771205517450,-338.31768698,0.0001763,2]
[405572245,1771205517479,-300.0,0.00017707,2]
[405572254,1771205523869,500.0,0.00013273,2]
[405572256,1771205523913,1000.0,0.00013821,2]
[405572257,1771205523972,1329.49787389,0.00014368,2]
[405572288,1771205546649,-273.08534217,0.00017188,2]
[405572289,1771205546690,-36.95396663,0.00017188,2]
[405572301,1771205575955,-273.08534217,0.00017188,2]
[405572311,1771205708843,500.0,0.00013273,2]
[405572312,1771205708890,506.10977722,0.00013821,2]
[405572314,1771205726399,332.32048587,0.00013273,2]
[405572362,1771205887708,501.25564502,0.00013273,2]
[405572363,1771205888425,503.21253806,0.00013699,2]
[405572364,1771205901162,1000.0,0.00013821,2]
[405572365,1771205901215,1252.15217599,0.00014368,2]
[405572366,1771205901824,500.0,0.00013273,2]
[405572367,1771205904751,1000.0,0.00014247,2]
[405572368,1771205904787,500.0,0.00013699,2]
[405572369,1771205904819,1592.49280214,0.00014795,2]
[405572370,1771205906242,500.0,0.00013273,2]
[405572371,1771205906297,1000.0,0.00013821,2]
[405572372,1771205906346,1500.0,0.00014368,2]
[405572373,1771205906404,2000.0,0.00014916,2]
[405572374,1771205906458,1521.24641593,0.00015464,2]
[405572375,1771205906615,500.0,0.00013273,2]
[405572376,1771205906665,1000.0,0.00013821,2]
[405572377,1771205906714,172.14930614,0.00014368,2]
[405572379,1771206063613,500.0,0.00013699,2]
[405572380,1771206065786,500.0,0.00013699,2]
[405572381,1771206065837,571.07302511,0.00014247,2]
[405572382,1771206069149,503.85322993,0.00013273,2]
[405572383,1771206071253,966.80307602,0.00014247,2]
[405572385,1771206126935,618.86654035,0.00013273,2]
[405572386,1771206136373,500.0,0.00013699,2]
[405572387,1771206136418,1000.0,0.00014247,2]
[405572388,1771206136457,999.11333349,0.00014795,2]
[405572389,1771206192966,500.0,0.00013273,2]
[405572390,1771206193025,1000.0,0.00013821,2]
[405572391,1771206193071,321.25390354,0.00014368,2]
[405572398,1771206243768,500.0,0.00013273,2]
[405572399,1771206243846,515.01609151,0.00013821,2]
[405572400,1771206243880,357.78412688,0.00013699,2]
[405572401,1771206244086,193.74321943,0.00013699,2]
[405572403,1771206309521,343.60689015,0.00013699,2]
[405572404,1771206309641,502.34293564,0.00013699,2]
[405572405,1771206315906,389.46145446,0.00013699,2]
[405572407,1771206327916,504.44313269,0.00013699,2]
[405572413,1771206365701,500.0,0.00013273,2]
[405572414,1771206365755,1009.88525115,0.00013821,2]
[405572415,1771206370219,500.0,0.00013699,2]
[405572416,1771206370251,538.13851296,0.00014247,2]
[405572417,1771206380525,753.08107979,0.00014247,2]
[405572418,1771206380587,500.0,0.00013699,2]
[405572419,1771206429702,2973.57711123,0.000156,2]
[405572420,1771206432085,-5000.0,0.0001581,2]
[405572421,1771206432105,-300.0,0.00015969,2]
[405572422,1771206432127,-500.0,0.0001597,2]
[405572423,1771206432149,-368.05775847,0.0001597,2]
[405572425,1771206452136,-726.29957506,0.0001581,2]
[405572432,1771206481450,5000.0,0.000156,2]
[405572433,1771206497741,1050.4505239,0.00015487,2]
[405572436,1771206544220,507.83070257,0.00013699,2]
[405572437,1771206548131,503.46433359,0.00013699,2]
[405572438,1771206548471,625.6419369,0.00013699,2]
[405572441,1771206566104,-3021.34,0.0001581,2]
[405572445,1771206615986,300.0,0.00013673,2]
[405572446,1771206616020,322.90180235,0.00014221,2]
[405572448,1771206621328,500.0,0.00013699,2]
[405572449,1771206621384,241.62491046,0.00014247,2]
[405572450,1771206622603,500.0,0.00013273,2]
[405572451,1771206622661,534.69373026,0.00013821,2]
[405572481,1771206632006,-24.73162753,0.0001581,2]
[405572483,1771206632016,-649.0,0.0001581,2]
[405572485,1771206632026,-268.65726075,0.00015889,2]
[405572487,1771206632036,-300.0,0.00015968,2]
[405572489,1771206632046,-293.0,0.00015968,2]
[405572491,1771206632055,-799.34053087,0.00015968,2]
[405572497,1771206632106,-400.65946913,0.00015968,2]
[405572499,1771206632116,-506.66164353,0.0001597,2]
[405572501,1771206632126,-9608.97417664,0.0001597,2]
[405572722,1771206638153,-310.40026493,0.0001597,2]
[405572725,1771206638295,-693.07113536,0.0001597,2]
[405572727,1771206638306,-164.02332023,0.000163,2]
[405572729,1771206638317,-509.27730438,0.00016335,2]
[405572731,1771206638327,-500.0,0.00016613,2]
[405572733,1771206638338,-156.01123124,0.00016966,2]
[405572735,1771206638349,-11.98876876,0.00016966,2]
[405572737,1771206638359,-500.0,0.00016989,2]
[405572739,1771206638369,-11862.9061559,0.0001699,2]
[405572740,1771206638380,-576.278,0.00017188,2]
[405572741,1771206638395,-868.584,0.00017188,2]
[405572742,1771206638405,-188.327,0.00017188,2]
[405572743,1771206638416,-428.45,0.00017188,2]
[405572744,1771206638428,-163.34717076,0.000173,2]
[405572745,1771206638438,-168.0,0.00017351,2]
[405572746,1771206638447,-5574.0787445,0.00017417,2]
[405572747,1771206638458,-994.8446228,0.00017417,2]
[405572748,1771206638471,-420.0,0.00017459,2]
[405572750,1771206638481,-500.0,0.00017491,2]
[405572752,1771206638492,-874.0,0.00017547,2]
[405572754,1771206638501,-279.5008737,0.0001763,2]
[405572756,1771206638512,-500.0,0.00017707,2]
[405572758,1771206638522,-278.16414492,0.00017768,2]
[405572760,1771206638533,-151.0,0.00017789,2]
[405572762,1771206638541,-151.0,0.00017789,2]
[405572764,1771206638552,-151.0,0.00017789,2]
[405572766,1771206638562,-151.0,0.00017789,2]
[405572768,1771206638570,-151.0,0.00017789,2]
[405572770,1771206638581,-151.0,0.00017789,2]
[405572771,1771206638590,-151.0,0.00017789,2]
[405572773,1771206638599,-151.0,0.00017789,2]
[405572775,1771206638609,-151.0,0.00017789,2]
[405572777,1771206638619,-151.0,0.00017789,2]
[405572779,1771206638628,-151.0,0.00017789,2]
[405572781,1771206638639,-151.0,0.00017789,2]
[405572783,1771206638650,-163.29196948,0.00017789,2]
[405572785,1771206638660,-500.0,0.00017799,2]
[405572787,1771206638670,-512.11132026,0.00017799,2]
[405572789,1771206638679,-500.0,0.00017799,2]
[405572791,1771206638688,-200.0,0.00017799,3]
[405572793,1771206638700,-200.0,0.00017799,3]
[405572795,1771206638711,-200.0,0.00017799,3]
[405572797,1771206638721,-200.0,0.00017799,3]
[405572799,1771206638731,-200.0,0.00017799,3]
[405572801,1771206638742,-200.0,0.00017799,3]
[405572803,1771206638753,-15830.35573663,0.000178,2]
[405572805,1771206638767,-12393.65341346,0.000178,2]
[405572807,1771206638777,-191.92094478,0.000178,2]
[405572809,1771206638789,-150.0,0.00017808,2]
[405572811,1771206638800,-150.0,0.00017808,2]
[405572813,1771206638811,-306.58,0.0001781,3]
[405572815,1771206638820,-153.29,0.0001781,3]
[405572817,1771206638831,-459.92,0.0001781,3]
[405572819,1771206638843,-3057.53272075,0.0001781,2]
[405572821,1771206638853,-500.0,0.00017818,2]
[405572823,1771206638863,-500.0,0.00017819,2]
[405572825,1771206638873,-500.0,0.00017819,2]
[405572827,1771206638883,-500.0,0.00017819,2]
[405572829,1771206638893,-500.0,0.00017819,2]
[405572831,1771206638904,-500.0,0.00017819,2]
[405572833,1771206638913,-500.0,0.00017819,2]
[405572835,1771206638923,-500.0,0.00017819,2]
[405572837,1771206638932,-500.0,0.00017819,2]
[405572839,1771206638942,-500.0,0.00017819,2]
[405572841,1771206638952,-500.0,0.00017819,2]
[405572843,1771206638962,-500.0,0.00017819,2]
[405572845,1771206638971,-326.01288659,0.00017819,2]
[405572847,1771206638980,-137013.57437053,0.0001782,2]
[405572849,1771206638989,-840.50097577,0.0001782,2]
[405572851,1771206639002,-78422.18746758,0.0001782,2]
[405572853,1771206639011,-122205.30494988,0.0001782,2]
[405572855,1771206639020,-317.01556768,0.00017889,2]
[405572857,1771206639030,-440.27,0.00017889,2]
[405572859,1771206639040,-71232.60322619,0.00017989,2]
[405572861,1771206639049,-487.0,0.00017989,2]
[405572863,1771206639061,-487.0,0.00017989,2]
[405572866,1771206639071,-487.0,0.00017989,2]
[405572868,1771206639080,-487.0,0.00017989,2]
[405572870,1771206639089,-487.0,0.00017989,2]
[405572872,1771206639098,-487.0,0.00017989,2]
[405572873,1771206639108,-487.0,0.00017989,2]
[405572876,1771206639118,-487.0,0.00017989,2]
[405572878,1771206639128,-487.0,0.00017989,2]
[405572880,1771206639138,-1000.0,0.00018,2]
[405572882,1771206639148,-247056.74605962,0.00018,2]
[405572883,1771206639157,-268768.72683604,0.00018,2]
[405572885,1771206639167,-59069.23681714,0.00018,2]
[405573262,1771206643169,-281.50157974,0.00017989,2]
[405573348,1771206648855,-205.49842026,0.00017989,2]
[405573349,1771206648866,-487.0,0.00017989,2]
[405573350,1771206648876,-487.0,0.00017989,2]
[405573351,1771206648885,-487.0,0.00017989,2]
[405573352,1771206648896,-487.0,0.00017989,2]
[405573353,1771206648907,-487.0,0.00017989,2]
[405573354,1771206648917,-487.0,0.00017989,2]
[405573355,1771206648926,-487.0,0.00017989,2]
[405573356,1771206648936,-487.0,0.00017989,2]
[405573357,1771206648946,-487.0,0.00017989,2]
[405573358,1771206648955,-487.0,0.00017989,2]
[405573359,1771206648965,-487.0,0.00017989,2]
[405573360,1771206648974,-487.0,0.00017989,2]
[405573361,1771206648984,-487.0,0.00017989,2]
[405573362,1771206648994,-487.0,0.00017989,2]
[405573363,1771206649003,-487.0,0.00017989,2]
[405573364,1771206649012,-722.1,0.00017989,2]
[405573365,1771206649021,-475.18685598,0.00018,2]
[405573368,1771206673028,500.0,0.00013273,2]
[405573369,1771206673085,1035.48007766,0.00013821,2]
[405573371,1771206686469,502.21200029,0.00013273,2]
[405573384,1771206842879,503.98377101,0.00013273,2]
[405573385,1771206842912,500.0,0.00013699,2]
[405573386,1771206842952,1000.0,0.00014247,2]
[405573387,1771206842998,1146.41161692,0.00014795,2]
[405573388,1771206852352,500.0,0.00013699,2]
[405573389,1771206852387,478.12630565,0.00014247,2]
[405573395,1771206876188,172.2090102,0.00013545,2]
[405573400,1771206966250,503.16219972,0.00013699,2]
[405573401,1771206969366,500.0,0.00013699,2]
[405573402,1771206969405,505.59772617,0.00014247,2]
[405573404,1771207030224,500.0,0.00013699,2]
[405573405,1771207030270,1000.0,0.00014247,2]
[405573406,1771207030321,985.37945007,0.00014795,2]
[405573410,1771207083695,1007.39673857,0.00013821,2]
[405573411,1771207083791,500.0,0.00013273,2]
[405573419,1771207270077,505.29295394,0.00013699,2]
[405573421,1771207282420,500.0,0.00013699,2]
[405573422,1771207282474,505.66888302,0.00014247,2]
[405573423,1771207290587,500.0,0.00013699,2]
[405573424,1771207290644,505.19069017,0.00014247,2]
[405573425,1771207300492,-4081.94513475,0.00015854,2]
[405573431,1771207386925,706.10059677,0.000156,2]
[405573433,1771207417423,1005.0,0.000155,2]
[405573434,1771207423282,5000.0,0.000156,2]
[405573435,1771207445262,5000.0,0.000156,2]
[405573436,1771207467572,5000.0,0.000156,2]
[405573437,1771207489595,5000.0,0.000156,2]
[405573438,1771207512927,3535.48347162,0.000156,2]
[405573440,1771207547106,-464.9531687,0.0001579,2]
[405573441,1771207547246,-276.74497293,0.00015895,2]
[405573442,1771207547269,-1000.0,0.00016,2]
[405573443,1771207547288,-552.305961,0.00016015,2]
[405573444,1771207547309,-663.0,0.00016682,2]
[405573445,1771207547330,-1200.0,0.00017363,2]
[405573446,1771207547351,-4151.39027556,0.00017364,2]
[405573447,1771207547375,-287.0,0.00017364,2]
[405573448,1771207547397,-300.0,0.00017399,2]
[405573449,1771207547418,-300.0,0.00017399,2]
[405573450,1771207547439,-300.0,0.00017399,2]
[405573451,1771207547462,-287.0,0.00017583,2]
[405573452,1771207547484,-287.0,0.00017755,2]
[405573453,1771207547506,-168.0,0.00017765,2]
[405573454,1771207547526,-150.0,0.00017808,2]
[405573455,1771207547548,-168.0,0.00017833,2]
[405573456,1771207547570,-10551.64350785,0.00017889,2]
[405573457,1771207547593,-326.55906806,0.00017895,2]
[405573458,1771207547614,-287.0,0.000179,2]
[405573459,1771207547639,-1521.2621224,0.00017929,2]
[405573460,1771207547659,-1103.833344,0.00017937,2]
[405573461,1771207547682,-36226.76013276,0.0001798,2]
[405573462,1771207547702,-186.3339158,0.00017989,2]
[405573463,1771207547723,-153.29,0.0001799,3]
[405573464,1771207547744,-459.87,0.0001799,3]
[405573465,1771207547765,-106855.32435094,0.00018,2]
[405573468,1771207565439,500.0,0.00013273,2]
[405573469,1771207565498,551.7186439,0.00013821,2]
[405573470,1771207568171,626.12707671,0.00013699,2]
[405573473,1771207608806,150.0,0.000156,2]
[405573474,1771207627102,-150.0,0.000157,2]
[405573475,1771207627121,-425.0,0.00016892,2]
[405573476,1771207627140,-535.673,0.00016892,2]
[405573477,1771207627159,-188.327,0.00016892,2]
[405573478,1771207627177,-186.3339158,0.0001764,2]
[405573479,1771207627197,-150.0,0.00017808,2]
[405573480,1771207627217,-300.0,0.00017978,2]
[405573481,1771207627240,-500.0,0.00017999,2]
[405573482,1771207627261,-500.0,0.00017999,2]
[405573483,1771207627279,-486.81143205,0.00017999,2]
[405573484,1771207627302,-500.0,0.00017999,2]
[405573485,1771207627327,-500.0,0.00017999,2]
[405573486,1771207627353,-500.0,0.00017999,2]
[405573487,1771207627374,-500.0,0.00017999,2]
[405573488,1771207627397,-500.0,0.00017999,2]
[405573489,1771207627418,-500.0,0.00017999,2]
[405573490,1771207627438,-500.0,0.00017999,2]
[405573491,1771207627460,-500.0,0.00017999,2]
[405573492,1771207627482,-500.0,0.00017999,2]
[405573493,1771207627503,-500.0,0.00017999,2]
[405573494,1771207627523,-500.0,0.00017999,2]
[405573495,1771207627543,-307.83477927,0.00017999,2]
[405573496,1771207627563,-570.56597278,0.00017999,2]
[405573497,1771207627583,-462.87748914,0.00017999,2]
[405573498,1771207627602,-500.0,0.00017999,2]
[405573499,1771207627624,-500.0,0.00017999,2]
[405573500,1771207627648,-500.0,0.00017999,2]
[405573501,1771207627670,-500.0,0.00017999,2]
[405573502,1771207627692,-500.0,0.00017999,2]
[405573503,1771207627713,-578.40956793,0.00017999,2]
[405573504,1771207627734,-500.0,0.00017999,2]
[405573505,1771207627756,-500.0,0.00017999,2]
[405573506,1771207627779,-500.0,0.00017999,2]
[405573507,1771207627803,-500.0,0.00017999,2]
[405573508,1771207627826,-500.0,0.00017999,2]
[405573509,1771207627846,-500.0,0.00017999,2]
[405573510,1771207627866,-500.0,0.00017999,2]
[405573511,1771207627888,-500.0,0.00017999,2]
[405573512,1771207627910,-359.95919187,0.00017999,2]
[405573513,1771207627934,-500.0,0.00017999,2]
[405573514,1771207627954,-500.0,0.00017999,2]
[405573515,1771207627974,-500.0,0.00017999,2]
[405573516,1771207627996,-329.39573509,0.00017999,2]
[405573517,1771207628018,-500.0,0.00017999,2]
[405573518,1771207628038,-500.0,0.00017999,2]
[405573519,1771207628061,-500.0,0.00017999,2]
[405573520,1771207628082,-500.0,0.00017999,2]
[405573521,1771207628104,-500.0,0.00017999,2]
[405573522,1771207628125,-500.0,0.00017999,2]
[405573523,1771207628146,-500.0,0.00017999,2]
[405573524,1771207628167,-500.0,0.00017999,2]
[405573525,1771207628189,-500.0,0.00017999,2]
[405573526,1771207628210,-500.0,0.00017999,2]
[405573527,1771207628231,-500.0,0.00017999,2]
[405573528,1771207628253,-500.0,0.00017999,2]
[405573529,1771207628275,-500.0,0.00017999,2]
[405573530,1771207628296,-500.0,0.00017999,2]
[405573531,1771207628318,-500.0,0.00017999,2]
[405573532,1771207628342,-500.0,0.00017999,2]
[405573533,1771207628365,-500.0,0.00017999,2]
[405573534,1771207628387,-56686.33179408,0.00018,2]
[405573535,1771207635201,-1060.38901365,0.00018,2]
[405573538,1771207646094,-247.0,0.00017795,2]
[405573539,1771207646121,-460.39742726,0.00018,2]
[405573540,1771207648092,-29111.02054566,0.00018,2]
[405573542,1771207724154,165.38502896,0.000156,2]
[405573545,1771207807269,505.08421762,0.00013699,2]
[405573584,1771207832746,-300.0,0.00017504,2]